bitfinex/quotes_ETHUSD_20250804
["timestamp","ask_amount","ask_price","bid_price","bid_amount"]
[1754310723116,0.1408,3558.8,3558.4,4.268]
[1754310723318,0.1408,3558.8,3558.7,0.9292]
[1754310727473,2.95073593,3558.8,3558.7,0.9292]
[1754310727673,2.81008116,3558.7,3558.4,0.4883]
[1754310727889,2.81002778,3558.7,3558.4,4.7543]
[1754310728212,0.1408,3558.6,3558.5,0.4883]
[1754310728414,0.1408,3558.6,3558.5,0.9292]
[1754310728590,2.95089385,3558.6,3558.5,0.9292]
[1754310729337,2.95089385,3558.6,3558.5,0.4883]
[1754310730206,0.1408,3558.6,3558.5,0.4883]
[1754310730922,0.1408,3558.6,3558.4,4.266]
[1754310731214,0.1408,3558.6,3558.5,0.9292]
[1754310732720,0.1408,3558.6,3558.4,4.266]
[1754310732721,2.95089385,3558.6,3558.4,4.266]
[1754310732917,2.95089385,3558.6,3558.4,4.7543]
[1754310733122,2.81017282,3558.5,3558.4,4.7543]
[1754310733325,2.95091453,3558.6,3558.4,5.1952]
[1754310733699,2.81017282,3558.5,3558.4,5.1952]
[1754310734022,2.95092472,3558.6,3558.4,5.1952]
[1754310734526,2.81017282,3558.5,3558.4,5.1952]
[1754310734721,0.1408,3558.6,3558.4,5.1952]
[1754310735027,2.9509201,3558.6,3558.4,5.1952]
[1754310735537,2.81017282,3558.5,3558.2,0.4883]
[1754310735700,14.41530685,3558.4,3558.3,4.263]
[1754310736029,14.55610685,3558.4,3558.3,4.263]
[1754310736622,2.81033077,3558.3,3558.2,0.4883]
[1754310736824,2.81033077,3558.3,3558.2,4.7523]
[1754310737412,14.55613438,3558.4,3558.2,4.7523]
[1754310737913,14.55613438,3558.4,3558.2,5.1932]
[1754310738111,14.55613438,3558.4,3558.3,0.4883]
[1754310739030,11.74585506,3558.4,3558.3,0.4883]
[1754310740533,11.74585506,3558.4,3558.3,0.9292]
[1754310742594,0.1408,3558.4,3558.3,0.9292]
[1754310744123,0.1408,3558.4,3558.3,3.73953077]
[1754310744321,3.0,3558.7,3558.4,2.81024844]
[1754310744528,0.1408,3558.5,3558.4,8.00044844]
[1754310744826,0.001,3558.8,3558.5,0.9292]
[1754310745030,0.001,3558.8,3558.6,4.262]
[1754310745231,0.001,3558.8,3558.6,5.1912]
[1754310745390,11.60605506,3558.8,3558.6,4.264]
[1754310745594,0.1408,3558.7,3558.6,4.7049]
[1754310745902,0.1408,3558.7,3558.6,4.264]
[1754310746104,4.17924907,3558.7,3558.3,0.4409]
[1754310746400,4.17924907,3558.7,3558.4,4.265]
[1754310746401,1.22838391,3558.7,3558.4,4.265]
[1754310746606,1.26350909,3558.7,3558.4,4.265]
[1754310746803,0.1408,3558.5,3558.4,4.265]
[1754310747133,0.1408,3558.5,3558.2,0.4883]
[1754310747348,0.1408,3558.5,3558.2,4.265]
[1754310747349,11.74585506,3558.3,3558.2,4.265]
[1754310747514,11.74585506,3558.3,3557.9,0.9292]
[1754310747719,2.81041041,3558.2,3558.0,4.265]
[1754310748255,0.1408,3558.1,3558.0,4.265]
[1754310748535,2.95133496,3558.1,3557.9,4.265]
[1754310748899,2.95133496,3558.1,3557.9,4.7533]
[1754310749307,0.1408,3558.1,3557.9,4.7059]
[1754310749512,0.1408,3558.1,3558.0,0.9292]
[1754310750605,2.95128874,3558.1,3557.9,4.265]
[1754310750904,2.95128874,3558.1,3557.9,4.7533]
[1754310751100,2.81056773,3558.0,3557.9,4.7533]
[1754310751301,2.81064672,3557.9,3557.8,4.266]
[1754310751506,2.95144672,3557.9,3557.8,4.266]
[1754310751800,0.1408,3557.9,3557.8,4.7639]
[1754310752115,0.1408,3557.9,3557.8,5.1962]
[1754310752938,0.1408,3557.9,3557.8,4.266]
[1754310753532,2.95144672,3557.9,3557.8,4.7639]
[1754310753732,2.95144672,3557.9,3557.7,0.002]
[1754310753902,0.1408,3557.9,3557.8,4.265]
[1754310754303,2.95144672,3557.9,3557.8,4.7629]
[1754310754508,2.95144672,3557.9,3557.8,4.265]
[1754310754708,0.1408,3557.9,3557.8,4.265]
[1754310755511,0.1408,3557.9,3557.8,4.7629]
[1754310756239,2.95144672,3557.9,3557.8,4.265]
[1754310756445,0.1408,3557.9,3557.8,4.265]
[1754310756807,0.1408,3557.9,3557.8,5.1952]
[1754310757144,0.1408,3557.9,3557.8,5.1942]
[1754310757943,3.0,3558.5,3557.8,5.1942]
[1754310758124,0.1408,3558.0,3557.8,4.264]
[1754310758318,0.1408,3558.0,3557.9,0.4979]
[1754310758632,0.1408,3558.0,3557.9,0.9302]
[1754310763135,0.1408,3558.0,3557.7,0.002]
[1754310763335,0.1408,3558.0,3557.7,4.264]
[1754310763336,0.1408,3557.8,3557.7,4.264]
[1754310763846,2.95152572,3557.8,3557.7,4.264]
[1754310764250,4.6882414,3557.8,3557.7,4.264]
[1754310765313,4.6882414,3557.8,3557.7,0.002]
[1754310765519,6.6157414,3557.8,3557.7,0.002]
[1754310765714,9.6157414,3557.8,3557.7,0.002]
[1754310765946,9.7057414,3557.8,3557.7,0.002]
[1754310766340,40.2557414,3557.8,3557.7,0.002]
[1754310766824,40.51847948,3557.8,3557.7,0.002]
[1754310767019,44.78147948,3557.8,3557.7,0.002]
[1754310768455,44.78147948,3557.8,3557.6,0.002]
[1754310768456,8.04880473,3557.7,3557.6,0.002]
[1754310768671,41.2465518,3557.7,3557.6,0.002]
[1754310769853,10.3670518,3557.7,3557.6,0.002]
[1754310770232,10.3670518,3557.7,3557.6,0.4999]
[1754310770233,14.89649868,3557.7,3557.6,0.4999]
[1754310770436,14.6340518,3557.7,3557.6,0.4999]
[1754310770952,14.89643468,3557.7,3557.6,0.4999]
[1754310771147,14.6340518,3557.7,3557.6,0.4999]
[1754310771340,12.9470518,3557.7,3557.6,0.9322]
[1754310772533,12.9470518,3557.7,3557.6,0.002]
[1754310774559,13.2091962,3557.7,3557.6,0.002]
[1754310774962,13.2091962,3557.7,3557.6,0.9322]
[1754310775472,13.2091962,3557.7,3557.6,0.002]
[1754310775672,12.9470518,3557.7,3557.6,0.002]
[1754310775881,13.20918079,3557.7,3557.6,0.002]
[1754310776374,13.20918079,3557.7,3557.6,0.4999]
[1754310776739,13.20918079,3557.7,3557.6,0.9322]
[1754310776938,4.95012899,3557.7,3557.6,0.9322]
[1754310777151,8.955,3557.7,3557.6,0.9322]
[1754310777642,11.76580473,3557.7,3557.6,0.9322]
[1754310777836,7.49880473,3557.7,3557.6,0.9322]
[1754310778064,3.1408,3557.8,3557.6,0.9322]
[1754310778271,0.1408,3557.8,3557.7,0.9302]
[1754310779271,2.95152572,3557.8,3557.7,0.9302]
[1754310779677,2.95152572,3557.8,3557.7,0.4979]
[1754310779884,2.81080473,3557.7,3557.6,0.002]
[1754310780049,2.81080473,3557.7,3557.6,0.4999]
[1754310780374,4.4078,3557.8,3557.6,0.9322]
[1754310780576,0.1408,3557.8,3557.6,0.9322]
[1754310780883,2.95152572,3557.8,3557.7,0.9302]
[1754310783247,10.00152572,3557.8,3557.7,0.9302]
[1754310784186,7.1908,3557.8,3557.7,0.9302]
[1754310784363,10.00152572,3557.8,3557.7,0.9302]
[1754310786071,2.81080473,3557.7,3557.6,0.002]
[1754310786878,6.37563778,3557.7,3557.6,0.002]
[1754310787080,22.24569284,3557.7,3557.6,0.002]
[1754310787290,22.46699284,3557.7,3557.6,0.002]
[1754310787476,30.00629284,3557.7,3557.6,0.002]
[1754310787785,33.64629284,3557.7,3557.6,0.002]
[1754310788757,33.55629284,3557.7,3557.6,0.002]
[1754310789260,33.81859025,3557.7,3557.6,0.002]
[1754310791563,33.59729025,3557.7,3557.6,0.002]
[1754310793662,26.76709025,3557.7,3557.6,0.002]
[1754310793856,26.54729025,3557.7,3557.6,0.002]
[1754310794172,25.50899025,3557.7,3557.6,0.9434]
[1754310794760,7.52829741,3557.7,3557.6,0.9434]
[1754310794956,7.266,3557.7,3557.6,0.9434]
[1754310795162,5.81080473,3557.7,3557.6,0.9434]
[1754310795375,17.41585979,3557.7,3557.6,0.002]
[1754310795571,23.36985979,3557.7,3557.6,0.002]
[1754310795784,26.26448304,3557.7,3557.6,0.002]
[1754310796095,26.26448304,3557.7,3557.6,0.4893]
[1754310796274,26.26448304,3557.7,3557.6,0.9434]
[1754310797694,4.95048754,3557.7,3557.6,0.9434]
[1754310797898,7.266,3557.7,3557.6,0.9434]
[1754310798561,7.4068,3557.7,3557.6,0.9434]
[1754310798762,0.1408,3557.7,3557.6,0.9434]
[1754310798963,0.26250893,3558.0,3557.6,0.9434]
[1754310799270,0.1408,3557.9,3557.7,0.9414]
[1754310799469,0.1408,3558.0,3557.8,3.75212572]
[1754310799665,0.1408,3558.0,3557.9,0.9414]
[1754310799866,0.1408,3558.0,3557.9,3.75204672]
[1754310800168,0.001,3558.1,3558.0,2.81056773]
[1754310800586,0.001,3558.1,3558.0,3.75196773]
[1754310801187,0.001,3558.1,3558.0,3.89276773]
[1754310802403,0.001,3558.1,3558.0,8.16076773]
[1754310803796,0.001,3558.1,3558.0,15.16076773]
[1754310810305,0.001,3558.5,3558.4,2.81025179]
[1754310810603,0.001,3558.8,3558.7,2.81001489]
[1754310810787,0.001,3558.8,3558.7,7.07601489]
[1754310811105,0.001,3558.8,3558.7,8.15821489]
[1754310811498,1e-08,3558.8,3558.7,11.82074989]
[1754310811906,1e-08,3559.0,3558.9,3.35985697]
[1754310812084,1e-08,3559.0,3558.9,17.96491203]
[1754310812283,1e-08,3559.0,3558.9,19.01771203]
[1754310812494,1e-08,3559.0,3558.9,7.41265697]
[1754310812679,1e-08,3559.0,3558.9,19.01771203]
[1754310814382,1e-08,3559.0,3558.9,23.28371203]
[1754310819498,1e-08,3559.0,3558.9,11.67565697]
[1754310819694,1e-08,3559.0,3558.9,23.28071203]
[1754310821739,1e-08,3559.0,3558.9,23.39222103]
[1754310822320,1e-08,3559.0,3558.9,19.13022103]
[1754310822512,1e-08,3559.0,3558.9,23.39222103]
[1754310822916,1e-08,3559.9,3559.2,3.35962013]
[1754310823219,1e-08,3559.9,3559.2,10.62162013]
[1754310823397,1e-08,3559.9,3559.2,11.67442013]
[1754310823597,1e-08,3559.9,3559.2,11.78693313]
[1754310824229,1e-08,3559.9,3559.2,7.52493313]
[1754310824435,1e-08,3559.9,3559.2,10.32393313]
[1754310824729,0.2075,3559.8,3559.2,10.32393313]
[1754310825315,0.2075,3559.8,3559.2,10.80603313]
[1754310825637,0.2075,3559.8,3559.2,11.23593313]
[1754310826206,1e-08,3559.9,3559.2,11.23593313]
[1754310826712,0.001,3559.7,3559.2,11.23593313]
[1754310826917,0.001,3559.7,3559.2,10.80603313]
[1754310827225,0.001,3559.7,3559.2,6.06293313]
[1754310827535,0.001,3559.7,3559.2,10.32393313]
[1754310827937,0.001,3559.7,3559.2,10.21142013]
[1754310828435,0.001,3559.7,3559.2,11.12242013]
[1754310829637,0.001,3559.7,3559.2,11.67242013]
[1754310829839,0.001,3559.7,3559.2,11.78493313]
[1754310831660,1e-08,3559.3,3559.2,11.78493313]
[1754310831946,1e-08,3559.4,3559.3,6.3595412]
[1754310832246,1e-08,3559.7,3559.6,6.35930441]
[1754310832451,0.001,3560.3,3559.6,28.97335947]
[1754310832742,0.001,3561.6,3561.5,2.80780569]
[1754310832913,0.091,3562.7,3561.5,4.403]
[1754310832914,0.2075,3562.4,3561.5,4.403]
[1754310833105,0.3475,3562.2,3561.6,2.80772686]
[1754310833305,0.3475,3562.2,3561.9,2.80748336]
[1754310833505,0.3475,3562.2,3562.0,7.07140532]
[1754310833741,0.2075,3562.1,3562.0,4.264]
[1754310833923,0.2985,3562.1,3562.0,4.264]
[1754310835439,0.2985,3562.1,3561.5,9.80775129]
[1754310835639,0.14,3561.9,3561.6,4.263]
[1754310835808,0.14,3561.9,3561.7,2.80764803]
[1754310836020,0.14,3561.9,3561.8,4.263]
[1754310836213,0.231,3561.9,3561.8,4.263]
[1754310836520,0.231,3561.9,3561.4,0.14]
[1754310836848,0.14,3561.6,3561.5,4.263]
[1754310837013,0.4385,3561.6,3561.5,4.265]
[1754310837624,0.3475,3561.6,3561.5,4.265]
[1754310837831,0.091,3562.4,3561.5,4.265]
[1754310838146,0.14,3562.0,3561.8,2.8075199]
[1754310838344,0.14,3562.0,3561.9,4.265]
[1754310838663,0.14,3562.1,3561.9,7.07249038]
[1754310839014,0.14,3562.1,3561.9,4.265]
[1754310839215,0.14,3562.1,3561.9,7.07248122]
[1754310839510,0.14,3562.1,3561.9,4.265]
[1754310840125,0.14,3562.1,3561.5,0.14]
[1754310840314,0.2985,3562.0,3561.6,4.264]
[1754310840666,2.8075692,3561.8,3561.7,4.264]
[1754310840814,2.8075692,3561.8,3561.7,4.265]
[1754310841157,0.2985,3561.8,3561.7,4.265]
[1754310841326,0.4385,3561.8,3561.7,4.265]
[1754310841531,0.3475,3561.8,3561.7,4.265]
[1754310842061,1.04383538,3561.8,3561.7,4.265]
[1754310842213,0.4385,3561.8,3561.7,4.265]
[1754310842732,0.3475,3561.8,3561.7,4.265]
[1754310842924,0.14,3561.8,3561.7,4.265]
[1754310844655,2.9475692,3561.8,3561.7,4.265]
[1754310845752,3.1550692,3561.8,3561.7,4.264]
[1754310846059,3.7513243,3561.8,3561.7,4.264]
[1754310846946,3.8423243,3561.8,3561.1,0.1408]
[1754310847253,2.80779504,3561.6,3561.2,4.262]
[1754310847556,2.94779504,3561.6,3561.2,4.262]
[1754310847752,0.14,3561.6,3561.2,4.262]
[1754310848245,2.80780965,3561.5,3561.2,4.262]
[1754310848444,2.80780965,3561.5,3561.1,0.1408]
[1754310848651,2.80780965,3561.5,3561.2,4.262]
[1754310848973,2.80780965,3561.5,3561.1,0.1408]
[1754310848974,0.8634151,3561.5,3560.7,0.4744]
[1754310849139,0.14,3561.3,3560.8,4.262]
[1754310849859,0.14,3561.3,3561.1,2.80811842]
[1754310850160,0.14,3561.3,3561.2,4.263]
[1754310850520,0.14,3561.5,3561.3,2.80796338]
[1754310850719,0.14,3561.5,3561.4,0.4744]
[1754310851333,0.14,3561.5,3561.4,3.72048453]
[1754310851582,0.14,3561.5,3561.4,0.9126]
[1754310852783,0.14,3561.5,3561.4,7.9126]
[1754310853138,0.14,3561.5,3561.4,7.0]
[1754310853383,0.14,3561.5,3561.4,11.262]
[1754310853545,0.14,3561.5,3561.4,7.0]
[1754310853748,0.14,3561.5,3561.0,0.1408]
[1754310853978,2.80796592,3561.3,3561.1,4.262]
[1754310854134,0.1408,3561.2,3561.1,4.262]
[1754310854466,0.3483,3561.2,3561.1,4.262]
[1754310854775,0.1408,3561.2,3560.6,0.4744]
[1754310854977,0.1408,3561.0,3560.7,2.80843654]
[1754310855145,0.1408,3561.0,3560.7,7.07143654]
[1754310855478,0.1408,3561.0,3560.8,2.80835344]
[1754310855978,0.1408,3561.0,3560.5,3.42378479]
[1754310856182,0.1408,3561.0,3560.6,5.1756]
[1754310856863,1.779,3561.5,3561.4,1.03554446]
[1754310857091,5.46624546,3561.5,3561.4,0.2075]
[1754310857578,8.46624546,3561.5,3561.4,0.2075]
[1754310858873,8.46624546,3561.5,3561.4,7.0]
[1754310859258,2.80809457,3561.2,3561.1,4.262]
[1754310859445,3.0,3561.4,3561.1,4.7364]
[1754310859652,2.80777825,3561.6,3561.2,0.9126]
[1754310859872,2.80777825,3561.6,3561.1,4.262]
[1754310859873,3.26222841,3561.5,3561.3,0.9126]
[1754310860178,0.1408,3561.2,3561.1,4.262]
[1754310860378,0.1408,3561.2,3561.1,5.1746]
[1754310860864,0.1408,3561.2,3561.1,0.9126]
[1754310861181,0.1408,3561.2,3560.7,2.9492178]
[1754310861182,2.80813588,3561.1,3560.8,0.4744]
[1754310861377,0.1408,3561.0,3560.9,4.262]
[1754310861579,0.1408,3561.0,3560.5,0.1408]
[1754310861781,0.1408,3560.7,3560.5,0.4744]
[1754310861983,0.1408,3560.7,3560.6,4.262]
[1754310862287,0.1408,3560.7,3560.6,4.7364]
[1754310863587,0.1408,3560.7,3560.6,7.98411541]
[1754310863775,1.688,3561.5,3560.6,7.98411541]
[1754310863776,0.1408,3561.0,3560.9,2.80826808]
[1754310864082,0.1408,3561.0,3560.9,7.98386808]
[1754310864287,0.14,3561.4,3560.9,5.1756]
[1754310864486,0.14,3561.4,3561.1,2.80804291]
[1754310864784,0.14,3561.4,3561.2,4.264]
[1754310865165,0.14,3561.4,3561.3,0.9126]
[1754310866486,0.14,3561.5,3561.4,7.0]
[1754310866686,0.14,3561.5,3561.4,6.86]
[1754310866893,0.14,3561.5,3561.4,0.9126]
[1754310867306,0.14,3561.5,3561.4,0.4744]
[1754310868293,0.14,3561.5,3561.4,0.9126]
[1754310868592,0.14,3561.5,3561.4,3.72048453]
[1754310868898,0.14,3561.7,3561.5,2.8077843]
[1754310869105,0.14,3561.7,3561.6,7.54512686]
[1754310869267,0.14,3561.7,3561.6,7.98332686]
[1754310869472,0.14,3561.7,3561.6,5.1756]
[1754310869653,0.14,3561.7,3561.4,2.80785656]
[1754310869654,0.14,3561.7,3561.5,4.263]
[1754310870057,0.14,3561.7,3561.5,4.7374]
[1754310870258,0.14,3561.7,3561.6,0.4744]
[1754310870915,2.80780411,3561.6,3561.1,0.1408]
[1754310871115,3.61069503,3561.7,3561.2,0.4744]
[1754310871410,2.80788518,3561.4,3561.3,4.262]
[1754310872091,2.94783835,3561.5,3561.3,4.262]
[1754310872254,2.80788453,3561.4,3561.3,4.262]
[1754310872673,2.94783038,3561.5,3561.3,4.262]
[1754310872870,5.05762395,3561.5,3561.3,4.262]
[1754310873079,2.80788453,3561.4,3561.3,4.262]
[1754310873289,2.80788453,3561.4,3561.1,0.4919]
[1754310873458,2.80788453,3561.4,3561.2,4.262]
[1754310873659,2.80788453,3561.4,3561.2,4.7539]
[1754310873894,0.14,3561.3,3561.2,4.7539]
[1754310874261,0.14,3561.3,3561.2,3.29994223]
[1754310874519,3.0,3561.8,3561.4,2.80787998]
[1754310874664,0.14,3561.6,3561.5,4.7549]
[1754310874858,0.14,3561.6,3561.5,5.1992]
[1754310875393,0.14,3561.6,3561.1,0.1408]
[1754310875600,0.14,3561.6,3561.2,8.00724223]
[1754310875760,0.14,3561.6,3561.3,3.29985497]
[1754310875960,0.14,3561.6,3561.3,3.74415497]
[1754310876160,0.14,3561.6,3561.4,0.9362]
[1754310876357,0.14,3561.6,3561.5,4.263]
[1754310876804,0.14,3561.6,3561.5,5.1992]
[1754310877997,0.14,3561.6,3561.5,8.00700569]
[1754310878375,0.14,3561.6,3561.5,5.1992]
[1754310879300,0.14,3561.6,3561.2,2.80803589]
[1754310879500,2.8074906,3561.9,3561.3,4.262]
[1754310879501,4.49550371,3561.9,3561.3,4.262]
[1754310879802,3.55738956,3561.8,3561.3,4.262]
[1754310879999,0.14,3561.4,3561.3,4.7539]
[1754310880197,0.14,3561.4,3561.3,5.1982]
[1754310880397,0.14,3561.4,3561.3,8.00616338]
[1754310883001,0.14,3561.4,3561.3,8.00816338]
[1754310884000,0.14,3561.4,3561.3,5.2002]
[1754310884599,0.14,3561.4,3561.3,4.7559]
[1754310885503,0.14,3561.4,3561.3,5.2002]
[1754310885672,0.14,3561.4,3561.3,5.1992]
[1754310886186,11.73852798,3561.4,3561.3,4.262]
[1754310886399,13.08128078,3561.4,3561.3,4.262]
[1754310886586,14.76928078,3561.4,3561.3,4.262]
[1754310886782,17.57716531,3561.4,3561.3,0.002]
[1754310887097,17.66816531,3561.4,3561.3,0.002]
[1754310888227,20.93087721,3561.4,3561.3,0.002]
[1754310888541,20.66816531,3561.4,3561.3,0.002]
[1754310888747,20.9308532,3561.4,3561.3,0.002]
[1754310888893,32.7918532,3561.4,3561.3,0.002]
[1754310889091,62.7918532,3561.4,3561.3,0.002]
[1754310891540,62.791609,3561.4,3561.3,0.002]
[1754310892946,2.80835767,3560.8,3560.7,0.002]
[1754310893096,23.9175484,3560.8,3560.7,0.002]
[1754310893297,24.0583484,3560.8,3560.7,0.002]
[1754310893922,31.1083484,3560.8,3560.7,0.002]
[1754310897664,17.26015767,3560.8,3560.7,0.002]
[1754310897805,17.26015767,3560.8,3560.7,0.9382]
[1754310898910,12.99915767,3560.8,3560.7,0.9382]
[1754310899107,12.99915767,3560.8,3560.7,0.002]
[1754310899108,14.68715767,3560.8,3560.7,0.002]
[1754310900050,14.68715767,3560.8,3560.7,0.4939]
[1754310900256,17.55540474,3560.8,3560.7,0.4939]
[1754310900811,10.1908,3560.8,3560.7,0.9382]
[1754310901029,7.1908,3560.8,3560.7,3.74663654]
[1754310901342,7.1908,3560.8,3560.7,0.9382]
[1754310904145,7.1908,3560.8,3560.7,3.74663654]
[1754310904945,7.1908,3560.8,3560.7,0.9382]
[1754310906460,7.1908,3560.8,3560.7,3.74663654]
[1754310909856,7.05,3560.8,3560.7,3.74663654]
[1754310910220,0.001,3561.3,3561.2,2.80804223]
[1754310910422,0.001,3561.3,3561.2,7.06904223]
[1754310910824,0.001,3561.3,3561.2,7.99434223]
[1754310912553,0.001,3561.3,3561.2,8.13514223]
[1754310914961,0.001,3561.3,3561.2,15.13514223]
[1754310915379,0.001,3561.3,3561.2,10.73334223]
[1754310915667,0.001,3561.3,3561.2,14.99534223]
[1754310920573,0.001,3561.3,3561.2,7.9253]
[1754310920878,0.001,3561.3,3561.2,11.756]
[1754310921766,0.001,3561.3,3561.2,7.0]
[1754310922075,0.001,3561.3,3561.2,11.261]
[1754310922232,0.001,3561.3,3561.2,7.0]
[1754310922435,2.80896338,3561.3,3561.2,11.261]
[1754310922749,2.80896338,3561.3,3561.2,7.0]
[1754310922950,2.80896338,3561.3,3561.2,11.261]
[1754310923459,0.001,3561.3,3561.2,11.261]
[1754310923661,2.80896338,3561.3,3561.2,11.261]
[1754310923862,4.08474077,3561.3,3561.2,7.0]
[1754310924176,4.08474077,3561.3,3561.2,11.262]
[1754310925376,4.22474077,3561.3,3561.2,11.262]
[1754310926051,4.22474077,3561.3,3561.2,7.0]
[1754310926259,4.22474077,3561.3,3561.1,4.262]
[1754310926975,2.80804223,3561.2,3561.1,4.262]
[1754310927346,2.80804223,3561.2,3560.8,0.495]
[1754310927671,3.30017174,3561.2,3560.7,0.002]
[1754310927981,2.94915767,3560.8,3560.7,4.264]
[1754310928547,0.1408,3560.8,3560.7,4.264]
[1754310928748,0.1408,3560.8,3560.7,5.1893]
[1754310929159,0.1408,3560.8,3560.7,4.264]
[1754310929364,2.94915767,3560.8,3560.7,0.002]
[1754310929564,2.94915767,3560.8,3560.7,4.265]
[1754310930589,0.1408,3560.8,3560.7,4.265]
[1754310930787,0.1408,3560.8,3560.7,4.76]
[1754310931002,0.1408,3560.8,3560.7,5.1903]
[1754310931882,0.1408,3560.8,3560.7,4.76]
[1754310932088,2.94915767,3560.8,3560.7,4.265]
[1754310932306,2.94915767,3560.8,3560.7,0.002]
[1754310932460,0.1408,3560.8,3560.7,5.2043]
[1754310933050,0.1408,3560.8,3560.7,4.7524]
[1754310933283,0.1408,3560.8,3560.7,5.2043]
[1754310933609,2.80897714,3561.3,3560.7,8.01273124]
[1754310933610,5.80897521,3561.3,3560.7,8.01273124]
[1754310933762,0.1408,3560.9,3560.7,7.07443124]
[1754310933962,0.1408,3560.9,3560.8,0.9383]
[1754310934157,0.1408,3560.9,3560.8,3.74665767]
[1754310935763,0.1408,3561.1,3560.9,2.80822732]
[1754310935963,0.1408,3561.1,3561.0,5.2023]
[1754310936396,0.1408,3561.1,3561.0,8.01049994]
[1754310936697,0.1408,3561.1,3561.0,5.2023]
[1754310943708,0.1408,3561.1,3561.0,4.7504]
[1754310944419,0.1408,3561.1,3561.0,4.261]
[1754310945720,2.94892108,3561.1,3561.0,4.261]
[1754310946332,4.63692108,3561.1,3561.0,4.261]
[1754310946534,0.1408,3561.1,3561.0,4.261]
[1754310947734,2.94893043,3561.1,3560.8,0.4864]
[1754310948034,5.8090064,3561.3,3560.9,4.26]
[1754310948334,0.1408,3560.9,3560.7,0.002]
[1754310948521,0.1408,3560.9,3560.8,4.26]
[1754310948887,7.1908,3560.9,3560.8,4.26]
[1754310949087,9.9990788,3560.9,3560.8,4.26]
[1754310949325,7.1908,3560.9,3560.8,4.26]
[1754310949840,9.9990788,3560.9,3560.8,4.26]
[1754310950544,9.9990788,3560.9,3560.7,0.002]
[1754310950699,9.9990788,3560.9,3560.7,4.262]
[1754310951042,9.9990788,3560.9,3560.7,0.002]
[1754310951322,2.80835767,3560.8,3560.7,4.261]
[1754310951521,3.5339783,3560.8,3560.7,0.002]
[1754310951823,3.49887383,3560.8,3560.7,0.002]
[1754310952899,8.44955289,3560.8,3560.7,0.002]
[1754310953126,16.14055289,3560.8,3560.7,0.002]
[1754310954934,16.14039489,3560.8,3560.7,0.002]
[1754310956336,16.04939489,3560.8,3560.7,0.002]
[1754310956529,16.04928146,3560.8,3560.7,0.002]
[1754310960671,46.14015666,3560.8,3560.7,0.002]
[1754310962755,46.04903644,3560.8,3560.7,0.002]
[1754310963940,46.14003644,3560.8,3560.7,1e-08]
[1754310964288,46.04903644,3560.8,3560.7,1e-08]
[1754310964784,46.04903644,3560.8,3560.6,1e-08]
[1754310964785,7.49643654,3560.7,3560.6,1e-08]
[1754310965071,38.04667318,3560.4,3560.3,0.002]
[1754310965272,61.35256524,3560.4,3560.3,0.002]
[1754310965574,61.44356524,3560.4,3560.3,0.002]
[1754310965738,64.31181231,3560.4,3560.3,1e-08]
[1754310966550,64.22081231,3560.4,3560.3,1e-08]
[1754310967079,59.41381231,3560.4,3560.3,1e-08]
[1754310967278,22.07588286,3560.4,3560.3,0.45510001]
[1754310967532,22.62588286,3560.4,3560.3,0.45510001]
[1754310967871,22.62688286,3560.4,3560.3,0.45510001]
[1754310968611,22.62688286,3560.4,3560.3,0.91950001]
[1754310968808,22.62688286,3560.4,3560.3,1e-08]
[1754310970715,20.38788286,3560.4,3560.3,0.91950001]
[1754310970912,17.51963579,3560.4,3560.3,0.91950001]
[1754310971478,17.25747318,3560.4,3560.3,0.91950001]
[1754310972013,12.99947318,3560.4,3560.3,0.91950001]
[1754310972183,17.25747318,3560.4,3560.3,0.91950001]
[1754310972898,28.85340263,3560.4,3560.3,0.91950001]
[1754310973099,31.7216497,3560.4,3560.3,0.91950001]
[1754310976016,32.2716497,3560.4,3560.3,1e-08]
[1754310976192,34.22138203,3560.4,3560.3,1e-08]
[1754310976918,34.22138203,3560.4,3560.3,0.91950001]
[1754310978824,34.22138203,3560.4,3560.3,1e-08]
[1754310980223,64.22138203,3560.4,3560.3,1e-08]
[1754310980911,52.62545258,3560.4,3560.3,1e-08]
[1754310981218,64.22138203,3560.4,3560.3,0.45510001]
[1754310981928,64.22138203,3560.4,3560.3,1e-08]
[1754310984226,5.04698876,3560.0,3559.9,0.002]
[1754310984442,21.30245054,3560.0,3559.9,0.002]
[1754310984610,24.30245054,3560.0,3559.9,0.002]
[1754310985714,54.30245054,3560.0,3559.9,0.002]
[1754310987244,54.44470128,3560.0,3559.9,0.002]
[1754310987400,63.94636287,3560.0,3559.9,0.002]
[1754310988011,63.94636287,3560.0,3559.9,0.4571]
[1754310988212,63.80411213,3560.0,3559.9,0.4571]
[1754310988550,63.947817,3560.0,3559.9,0.002]
[1754310988933,63.94836198,3560.0,3559.9,0.002]
[1754310990634,63.94833104,3560.0,3559.9,0.002]
[1754310990949,33.80462617,3560.0,3559.9,0.9215]
[1754310991847,63.80462617,3560.0,3559.9,0.9215]
[1754310992018,63.80462138,3560.0,3559.9,0.9215]
[1754310992217,33.80462138,3560.0,3559.9,0.9215]
[1754310998060,28.99762138,3560.0,3559.9,0.9215]
[1754310998219,33.25562138,3560.0,3559.9,0.9215]
[1754310998568,6.81224158,3560.0,3559.9,3.73056767]
[1754310999058,6.55,3560.0,3559.9,3.73056767]
[1754310999859,6.55,3560.0,3559.9,0.9215]
[1754311000362,0.1408,3560.1,3559.9,0.9215]
[1754311000521,0.1408,3560.1,3560.0,3.71668876]